[Event "15th Chennai GM Open 2025"]
[Site "Chennai"]
[Date "2025.01.06"]
[Round "7.4"]
[White "Vaz, Ethan"]
[Black "Deepan Chakkravarthy J."]
[Result "1/2-1/2"]
[ECO "B22"]
[WhiteElo "2412"]
[BlackElo "2413"]
[Annotator "TA"]
[PlyCount "74"]
[EventDate "2025.01.02"]
[EventType "swiss"]
[EventCountry "IND"]
[SourceTitle "playchess.com"]
[Source "ChessBase"]
[SourceQuality "1"]
[TimeControl "5400+30"]

{[%evp 13,74,20,22,11,14,14,10,0,0,0,25,8,14,-29,-30,-24,-32,-19,-25,-36,-29,-26,-25,-24,-29,-24,-25,-72,-9,-70,-63,-58,-52,-52,-57,-73,-74,-131,-128,-105,-106,-105,-127,-108,-100,-122,-122,-116,-127,-121,-126,-172,-110,-201,-93,-191,-96,-168,0,-165,0,-158,0]} 1. e4 {[%emt 0:00:46][%cal Be2e4,Be4e5][%mdl 32]} c5 {[%emt 0:12:47]} 2. Nf3 {[%emt 0:00:20]} e6 {[%emt 0:01:10]} 3. c3 {[%emt 0:00:40]} Nf6 {[%emt 0:00:49]} 4. e5 {[%emt 0:00:06]} Nd5 {[%emt 0:00:04]} 5. d4 {[%emt 0:00:48]} cxd4 {[%emt 0:04:02]} 6. cxd4 {[%emt 0:00:05]} b6 {[%emt 0:04:45]} 7. Bd3 {[%emt 0:14:00]} Ba6 {[%emt 0:01:29]} 8. Bxa6 {[%emt 0:10:35]} Nxa6 {[%emt 0:00:08]} 9. O-O {[%emt 0:02:14]} Be7 {[%emt 0:00:07]} 10. Nbd2 {[%emt 0:10:07]} Nac7 {[%emt 0:07:15]} 11. Ne4 {[%emt 0:04:53]} f5 {[%emt 0:08:55]} 12. Nd6+ {[%emt 0:07:18]} Kf8 $1 {[%emt 0:00:04]} 13. Nd2 {[%emt 0:14:47]} Bxd6 {[%emt 0:19:50]} 14. exd6 {[%emt 0:00:03]} Ne8 {[%emt 0:00:05]} 15. Nc4 {[%emt 0:07:10]} Kg8 {[%emt 0:01:26]} 16. a4 {[%emt 0:06:43]} h6 {[%emt 0:02:03]} 17. b3 {[%emt 0:03:38]} Kh7 {[%emt 0:11:13]} 18. Ba3 {[%emt 0:01:42]} Qh4 {[%emt 0:00:24]} 19. Qd2 {[%emt 0:04:20]} Nef6 {[%emt 0:00:12]} 20. f3 {[%emt 0:02:14]} (20. Ne5 $11 {is more appropriate.}) 20... Rac8 {[%emt 0:06:32]} (20... g5 $17) 21. Qf2 {[%emt 0:01:08]} (21. Rac1 $11) 21... Qxf2+ $15 {[%emt 0:02:57]} 22. Kxf2 {[%emt 0:00:58]} Rc6 {[%emt 0:00:02]} 23. Rfc1 {[%emt 0:02:15]} Rhc8 {[%emt 0:00:04]} 24. Ke1 {[%emt 0:02:05]} Nf4 $1 {[%emt 0:05:23] A dynamic duo of knights.} 25. Ne5 {[%emt 0:01:44] Prevents Nd3+} (25. Kf1 $142) 25... Nxg2+ $17 {[%emt 0:01:02]} 26. Kd2 {[%emt 0:01:25]} Rxc1 {[%emt 0:00:05]} 27. Rxc1 {[%emt 0:00:17]} Rxc1 {[%emt 0:00:18]} 28. Bxc1 {[%emt 0:00:28][%mdl 4096] Endgame KBN-KNN. Black is a pawn up.} Nf4 $1 {[%emt 0:00:30]} 29. b4 {[%emt 0:00:32]} Kg8 {[%emt 0:06:04]} 30. b5 {[%emt 0:00:58][%cal Oe5c6] [#]} Kf8 $1 {[%emt 0:01:03]} 31. Ba3 {[%emt 0:00:44][%cal Oe5c6]} Ke8 {[%emt 0:00:05]} 32. a5 {[%emt 0:00:34] [#]} Kd8 {[%emt 0:01:30]} (32... bxa5 33. Bc5 $17) (32... N4d5 $1 $19 33. Bc5 g5 (33... bxc5 34. dxc5 Kd8 35. a6 $17)) 33. a6 {[%emt 0:00:30]} (33. Nf7+ $17 Kc8 (33... Ke8 $2 34. Ne5 $19) 34. a6) 33... Kc8 {[%emt 0:01:50]} (33... g5 $19 34. d5 (34. Nf7+ $2 Ke8 $19) 34... N4xd5 (34... N6xd5 35. Bb2 $11)) 34. Kc3 {[%emt 0:00:23]} (34. Nf7 $17) 34... N4d5+ {[%emt 0:01:06]} (34... g5 $19 35. Kc4 h5) 35. Kd3 {[%emt 0:00:22]} (35. Kc4 $17 {was called for.}) 35... Nf4+ $2 {[%emt 0:00:52]} ({Black should try} 35... g5 $19 {And now ...h5 would win.} 36. Nf7 g4 37. fxg4 Nxg4) 36. Kc4 $2 {[%emt 0:00:29]} (36. Kc3 $1 $11 {and White has nothing to worry.}) 36... N4d5 {[%emt 0:00:02]} 37. Kd3 $1 {[%emt 0:00:14]} Nf4+ $2 {[%emt 0:00:43]} (37... g5 $17 38. Nf7 g4 39. fxg4 Nxg4) 1/2-1/2

[Event "15th Chennai GM Open 2025"]
[Site "Chennai"]
[Date "2025.01.06"]
[Round "7.5"]
[White "Fedorov, Alexei"]
[Black "Sammed Jaykumar, Shete"]
[Result "0-1"]
[ECO "C54"]
[WhiteElo "2409"]
[BlackElo "2379"]
[Annotator "TA"]
[PlyCount "54"]
[EventDate "2025.01.02"]
[EventType "swiss"]
[EventCountry "IND"]
[SourceTitle "playchess.com"]
[Source "ChessBase"]
[SourceQuality "1"]
[TimeControl "5400+30"]

{[%evp 14,54,8,15,45,38,41,12,36,20,43,39,59,0,0,-19,-3,-12,118,102,114,0,29,20,33,26,26,0,116,-216,-216,-216,-207,-218,-31,-205,-212,-221,-169,-408,-224,-29990,-29991]} 1. e4 {[%emt 0:00:04]} e5 {[%emt 0:00:22]} 2. Nf3 {[%emt 0:00:17]} Nc6 {[%emt 0:00:11]} 3. Bc4 {[%emt 0:00:07]} Bc5 {[%emt 0:00:09]} 4. c3 {[%emt 0:00:06]} Nf6 {[%emt 0:00:07]} 5. d3 {[%emt 0:00:05][%cal Bd2d3,Bd3d4][%mdl 32]} d6 {[%emt 0:00:11]} 6. Bg5 {[%emt 0:00:49][%cal Bc1g5,Bg5h4,Bh4g3][%mdl 32]} h6 {[%emt 0:00:18]} 7. Bh4 {[%emt 0:00:05]} g5 {[%emt 0:02:05]} 8. Bg3 $1 {[%emt 0:04:12]} Qe7 9. O-O {[%emt 0:01:28]} a6 {[%emt 0:00:57]} 10. d4 {[%emt 0:01:11]} Ba7 {[%emt 0:00:39]} (10... Bb6 $5) 11. Bd5 {[%emt 0:03:01]} O-O {[%emt 0:18:06]} 12. Bxc6 {[%emt 0:09:21]} bxc6 {[%emt 0:00:19]} 13. Nbd2 {[%emt 0:00:40]} ({White should play} 13. Re1 $1 $14) 13... Nh5 $11 {[%emt 0:17:26]} 14. Re1 {[%emt 0:21:28][%cal Rf3e5]} Nxg3 {[%emt 0:13:27]} 15. hxg3 {[%emt 0:00:08]} f5 {[%emt 0:04:21]} (15... g4 $11 16. Nh4 Qf6) 16. exf5 $16 {[%emt 0:10:00]} Bxf5 {[%emt 0:03:52]} 17. Qa4 {[%emt 0:07:33]} (17. dxe5 $16 Bg6 18. Qa4) 17... Qf7 {[%emt 0:05:09]} 18. dxe5 {[%emt 0:13:56]} (18. Qxc6 g4 19. Nh4 Bh7 $15) 18... g4 {[%emt 0:01:44]} 19. Nd4 $1 {[%emt 0:04:21]} Bd3 {[%emt 0:00:09]} 20. f4 {[%emt 0:04:19]} gxf3 {[%emt 0:08:18]} (20... c5 $1 $11 21. e6 Qh5) 21. gxf3 $2 {[%emt 0:01:24][%mdl 8192]} (21. N2xf3 $16 {is necessary to keep the advantage.} Bb5 22. Qd1) 21... dxe5 $19 {[%emt 0:03:53]} 22. Rxe5 {[%emt 0:01:38][%cal Og1h2] [#]} Qg7 $1 {[%emt 0:00:04][%csl LRe5,LRg3]} 23. Rh5 {[%emt 0:00:17][%cal Og1h1]} (23. Qb3+ Kh7 24. Rh5 Bxd4+ (24... Qxg3+ $2 25. Kh1 $19) 25. cxd4 Rxf3 $19 (25... Qxg3+ $2 26. Kh1 $19)) 23... Qxg3+ {[%emt 0:03:00]} 24. Kh1 {[%emt 0:00:04] And now Rg1 would win.} Rae8 {[%emt 0:00:07]} 25. Qd1 {[%emt 0:04:18] Dodges Re1+} Kh7 {[%emt 0:05:03]} 26. N2b3 $2 {[%emt 0:02:14]} (26. Qg1 {only move.} Qf4 27. Qh2) 26... Re3 {[%emt 0:03:11]} (26... Qg6 $142 27. Rh2 Re5) 27. Qd2 $2 {[%emt 0:06:58]} (27. Qg1 $19 Rfxf3 28. Qxg3 Rxg3 29. Kh2) 27... Rfxf3 {[%emt 0:01:02]} 0-1

[Event "15th Chennai GM Open 2025"]
[Site "Chennai"]
[Date "2025.01.06"]
[Round "7.6"]
[White "Czebe, Attila"]
[Black "Sathvik Adiga"]
[Result "1-0"]
[ECO "A25"]
[WhiteElo "2278"]
[BlackElo "2395"]
[Annotator "TA"]
[PlyCount "117"]
[EventDate "2025.01.02"]
[EventType "swiss"]
[EventCountry "IND"]
[SourceTitle "playchess.com"]
[Source "ChessBase"]
[SourceQuality "1"]
[TimeControl "5400+30"]

{[%evp 15,117,-20,-1,-8,-2,-16,62,51,72,27,41,34,23,25,81,76,97,39,38,39,133,134,142,108,123,85,84,83,89,62,70,71,140,142,177,183,182,198,187,202,200,108,196,215,201,210,228,223,230,227,225,222,248,250,297,282,322,327,457,471,471,471,710,695,652,603,752,743,614,719,739,712,724,724,724,601,670,560,703,599,1140,1079,1482,1194,12752,5473,12760,12752,11601,1875,6103,5061,29976,29977,29984,29985,29985,29986,29986,29987,29987,29988,29990,29991]} 1. c4 {[%emt 0:00:19]} e5 {[%emt 0:00:05]} 2. Nc3 {[%emt 0:00:09]} Nf6 {[%emt 0:00:03]} 3. e4 {[%emt 0:00:06]} Nc6 {[%emt 0:00:49]} 4. g3 {[%emt 0:00:19]} Bc5 {[%emt 0:06:09]} 5. Bg2 {[%emt 0:00:16]} d6 {[%emt 0:02:09]} 6. h3 {[%emt 0:05:45]} O-O {[%emt 0:07:23]} 7. Nge2 {[%emt 0:05:05]} Be6 {[%emt 0:05:57]} 8. d3 {[%emt 0:02:18]} Nd7 {[%emt 0:00:39]} 9. O-O {[%emt 0:02:34]} a6 {[%emt 0:05:31]} 10. Kh2 {[%emt 0:00:58]} f5 {[%emt 0:00:29]} (10... b5 $11) 11. exf5 $14 {[%emt 0:14:18]} Rxf5 {[%emt 0:08:14]} 12. f4 {[%emt 0:08:15]} Rf8 {[%emt 0:26:54]} 13. Ne4 {[%emt 0:05:55]} Qe7 {[%emt 0:06:04]} 14. Nxc5 {[%emt 0:02:00]} Nxc5 {[%emt 0:00:18]} (14... dxc5 $11 {keeps the balance.} 15. b3 Rae8) 15. b3 $1 $16 {[%emt 0:05:13]} Bf5 {[%emt 0:10:58] [#]} 16. d4 {[%emt 0:12:55]} (16. Ba3 $1 $16) 16... exd4 {[%emt 0:01:09]} 17. Nxd4 {[%emt 0:00:04]} Qf6 {[%emt 0:00:27] [#]} (17... Nxd4 $14 18. Qxd4 Rae8) 18. Nxc6 $1 $16 {[%emt 0:00:07]} bxc6 {[%emt 0:05:55]} 19. Be3 {[%emt 0:01:18]} Rae8 {[%emt 0:01:15]} 20. Bxc5 {[%emt 0:06:50]} dxc5 {[%emt 0:00:03]} 21. Qd2 {[%emt 0:00:22]} Rd8 {[%emt 0:03:08]} 22. Qf2 {[%emt 0:00:11]} Rd4 {[%emt 0:00:21]} 23. Rae1 {[%emt 0:00:36]} Rfd8 {[%emt 0:00:22]} (23... Bd3 $142) 24. Re5 $16 {[%emt 0:01:22]} Bg6 {[%emt 0:03:21]} 25. Rfe1 {[%emt 0:00:31]} (25. Rxc5 $2 Rd2 26. Re5 Rxf2 $19) 25... Rd2 {[%emt 0:03:06]} 26. R1e2 {[%emt 0:00:07]} ({Resist} 26. Qxc5 Rxa2 27. R5e2 Rxe2 28. Rxe2 Rd6 $16) 26... Rxe2 {[%emt 0:00:20]} 27. Qxe2 {[%emt 0:00:05]} Qd6 {[%emt 0:00:21]} 28. Qf3 {[%emt 0:10:35]} ({Better is} 28. Re6 $18 Qd2 29. Qe5 (29. Bxc6 Bh5 $18)) 28... h6 {[%emt 0:01:43]} (28... Re8 $16) 29. Qxc6 $18 {[%emt 0:02:28]} Qxc6 {[%emt 0:00:07]} 30. Bxc6 {[%emt 0:00:03]} Rd2+ {[%emt 0:00:07]} 31. Kg1 {[%emt 0:00:04]} Rxa2 {[%emt 0:00:42]} 32. f5 {[%emt 0:01:24]} Bf7 {[%emt 0:00:20]} 33. Rxc5 {[%emt 0:00:07]} Re2 {[%emt 0:00:52]} 34. Ba4 {[%emt 0:00:54]} Re7 {[%emt 0:00:15]} 35. Kf2 {[%emt 0:00:00]} Be8 {[%emt 0:00:50]} 36. g4 {[%emt 0:09:54]} Bxa4 {[%emt 0:00:54]} 37. bxa4 {[%emt 0:00:04]} Kf7 {[%emt 0:00:13]} 38. a5 {[%emt 0:00:07]} g6 {[%emt 0:01:00]} (38... h5 $142 39. g5 (39. gxh5 Kf6 $18) 39... Ke8) 39. fxg6+ $18 {[%emt 0:00:24]} Kxg6 {[%emt 0:00:02]} 40. Rc6+ {[%emt 0:00:08]} Kg5 {[%emt 0:00:04]} 41. c5 {[%emt 0:02:15]} Re4 {[%emt 0:01:03]} 42. Rxa6 {[%emt 0:00:24]} Ra4 {[%emt 0:00:22]} 43. Ra8 {[%emt 0:01:51]} Kf4 {[%emt 0:01:10]} 44. a6 {[%emt 0:00:32]} Ra2+ {[%emt 0:00:03]} 45. Ke1 {[%emt 0:00:03]} Ke3 {[%emt 0:00:02]} 46. Re8+ {[%emt 0:00:58]} Kd4 {[%emt 0:00:18]} 47. Re6 {[%emt 0:00:18]} Kxc5 {[%emt 0:01:00]} 48. Rxh6 {[%emt 0:00:05]} c6 {[%emt 0:00:47]} 49. g5 {[%emt 0:01:41]} Rxa6 {[%emt 0:00:09]} 50. g6 {[%emt 0:00:13]} Ra7 {[%emt 0:00:32]} 51. Rh7 {[%emt 0:00:27]} Ra8 {[%emt 0:00:06]} 52. h4 {[%emt 0:00:05]} (52. g7 $142 Rg8 53. h4) 52... Kd4 $18 {[%emt 0:00:27]} 53. h5 {[%emt 0:00:15]} c5 {[%emt 0:00:06]} 54. h6 {[%emt 0:00:21]} c4 {[%emt 0:00:44]} 55. Rd7+ {[%emt 0:00:08]} Ke3 {[%emt 0:00:55]} 56. g7 {[%emt 0:00:17]} c3 {[%emt 0:00:08]} 57. Kd1 {[%emt 0:00:03]} Ra1+ {[%emt 0:01:34]} 58. Kc2 {[%emt 0:00:06]} Rg1 {[%emt 0:00:04]} 59. h7 {[%emt 0:00:09]} 1-0

[Event "15th Chennai GM Open 2025"]
[Site "Chennai"]
[Date "2025.01.06"]
[Round "7.7"]
[White "Mayukh Majumder"]
[Black "Shahil Dey"]
[Result "0-1"]
[ECO "E17"]
[WhiteElo "2013"]
[BlackElo "2374"]
[Annotator "TA"]
[PlyCount "178"]
[EventDate "2025.01.02"]
[EventType "swiss"]
[EventCountry "IND"]
[SourceTitle "playchess.com"]
[Source "ChessBase"]
[SourceQuality "1"]
[TimeControl "5400+30"]

{[%evp 16,178,16,6,27,15,14,0,0,0,0,0,22,25,21,21,19,11,19,8,37,0,47,31,37,37,40,29,31,17,26,35,37,0,36,25,19,21,40,46,49,49,55,40,31,0,18,0,2,15,14,13,12,-96,0,0,48,48,67,0,0,0,0,0,0,0,0,0,0,0,0,0,0,-37,0,0,102,0,17,17,12,12,24,-41,0,0,0,0,0,-150,-30,-183,-160,-212,0,-16,0,-124,-76,-126,-111,-176,-147,-179,-197,-190,-85,-86,-95,-415,-417,-466,160,0,0,0,0,0,0,-41,-41,-41,-25,-25,-14,-14,-14,-14,-14,-41,-41,-41,-21,-28,-29,-1131,-36,-43,-43,-43,-43,-44,-44,-44,-44,-131,-131,-131,-66,-29977,-29976,-29981,-29982,-29981,-29982,-29982,-29983,-29984,-29985,-29986,-29987,-29987,-29988,-29988,-29989]} 1. Nf3 {[%emt 0:02:11]} Nf6 {[%emt 0:02:53]} 2. c4 {[%emt 0:00:07]} e6 {[%emt 0:01:26]} 3. g3 {[%emt 0:00:36]} d5 {[%emt 0:00:39]} 4. Bg2 {[%emt 0:00:11]} Be7 {[%emt 0:01:32]} 5. O-O {[%emt 0:01:54]} O-O {[%emt 0:00:04]} 6. b3 {[%emt 0:00:52]} b6 {[%emt 0:00:06]} 7. Bb2 {[%emt 0:00:19]} Bb7 {[%emt 0:00:05]} 8. cxd5 {[%emt 0:01:28]} exd5 {[%emt 0:00:35]} 9. d4 {[%emt 0:07:51]} Re8 {[%emt 0:00:20]} 10. Nbd2 {[%emt 0:00:40]} Nbd7 {[%emt 0:04:03]} 11. Rc1 {[%emt 0:02:42]} Bd6 {[%emt 0:00:05]} 12. Re1 {[%emt 0:04:34]} Qe7 {[%emt 0:01:36]} 13. Qc2 {[%emt 0:03:05]} Rac8 {[%emt 0:00:35] [#]} 14. Ne5 $1 {[%emt 0:10:14]} Nxe5 {[%emt 0:27:54]} (14... c6 15. Bh3) 15. dxe5 {[%emt 0:00:10]} Bxe5 {[%emt 0:00:04]} 16. Bxe5 {[%emt 0:00:42]} Qxe5 {[%emt 0:00:03]} 17. Bh3 {[%emt 0:00:24]} c5 {[%emt 0:02:00]} 18. Nf3 {[%emt 0:00:54]} Qh5 {[%emt 0:00:38]} (18... Qd6 $11) 19. Bxc8 $14 {[%emt 0:00:34]} Rxc8 {[%emt 0:00:20] [#]} 20. b4 $1 {[%emt 0:02:24][%cal Rb4c5]} c4 $1 {[%emt 0:11:15]} 21. Nd4 {[%emt 0:00:32]} Qe5 {[%emt 0:02:11]} 22. e3 {[%emt 0:03:03]} a6 {[%emt 0:01:48]} 23. Qf5 {[%emt 0:01:45]} Qe7 {[%emt 0:00:05]} 24. a3 {[%emt 0:00:44]} Ne4 {[%emt 0:01:40]} 25. f3 {[%emt 0:05:56]} g6 {[%emt 0:01:02]} 26. Qh3 {[%emt 0:00:53]} Nf6 {[%emt 0:00:42][%cal Be4f6,Bf6d7,Bd7e5][%mdl 32]} 27. Qh4 {[%emt 0:00:42]} Kg7 {[%emt 0:01:27]} 28. Qg5 {[%emt 0:05:48]} Qd7 {[%emt 0:00:20] Inhibits Nf5+.} 29. g4 {[%emt 0:00:08]} h6 $1 {[%emt 0:00:39]} 30. Qf4 {[%emt 0:00:06]} Qe7 $1 {[%emt 0:01:43]} 31. Ne2 {[%emt 0:13:47]} Nd7 {[%emt 0:08:25]} 32. Qd4+ {[%emt 0:00:07]} Kg8 {[%emt 0:05:33]} 33. Kg2 {[%emt 0:02:12]} Ne5 {[%emt 0:00:32]} 34. Rcd1 {[%emt 0:00:10]} (34. Rf1 $11) 34... Qf6 {[%emt 0:01:55]} (34... c3 $1 $17 35. Nxc3 Nxf3 36. Kxf3 Rc4 37. Qxb6 Rxc3) 35. Rf1 $11 {[%emt 0:02:46]} Rd8 {[%emt 0:11:37]} (35... Qe7 $11) 36. Nc3 $14 {[%emt 0:01:32]} Qe6 {[%emt 0:01:28]} 37. e4 {[%emt 0:04:17]} (37. h3 $14) 37... Nd3 $11 {[%emt 0:00:50]} 38. Rxd3 {[%emt 0:03:45]} cxd3 {[%emt 0:00:07]} 39. Rd1 {[%emt 0:00:18]} Rd6 {[%emt 0:04:31]} 40. Qxd3 {[%emt 0:10:59]} (40. e5 Rc6 41. Kf1 Rc4 42. Qxd3 d4 $15 (42... Qxe5 43. Nxd5 Bxd5 44. Qxd5 $19)) 40... d4 {[%emt 0:00:17]} 41. Ne2 {[%emt 0:00:15]} Qe5 $1 {[%emt 0:00:16]} (41... Qa2 $6 42. Rd2 Qa1 43. Nxd4 $14) 42. Nxd4 {[%emt 0:00:36]} h5 {[%emt 0:00:12]} 43. h3 {[%emt 0:02:30]} h4 {[%emt 0:00:19]} 44. Kh1 {[%emt 0:01:06]} Qg3 {[%emt 0:00:46][%mdl 1024] Black has compensation.} 45. Qf1 {[%emt 0:00:08]} Kg7 {[%emt 0:01:48]} (45... Qf4 $11) 46. Rd2 {[%emt 0:01:16]} ({White must play} 46. Ne2 $16 Qe5 47. Rxd6 Qxd6 48. Qa1+ Kg8 49. Qd4 Qxd4 50. Nxd4) 46... Qf4 {[%emt 0:00:56]} 47. Qg2 {[%emt 0:00:15]} Qf6 {[%emt 0:00:43]} (47... Qe3 48. Nf5+ gxf5 49. gxf5+ (49. Rxd6 fxe4 50. Qb2+ Kh7 $11) 49... Kh7 50. Rxd6 $18) 48. g5 {[%emt 0:01:08]} Qd8 {[%emt 0:01:42]} (48... Qf4 49. Qh2 Qxh2+ 50. Kxh2 $16) (48... Qe7 $5) 49. Nb3 {[%emt 0:00:19]} (49. Qh2 $11 Kg8 50. Qe5) 49... Bc8 {[%emt 0:00:16]} 50. Qh2 {[%emt 0:02:02]} Rxd2 {[%emt 0:00:34]} 51. Qxd2 {[%emt 0:00:05][%mdl 4096] Endgame KQB-KQN. White is a pawn up.} Qc7 {[%emt 0:00:05][%cal Oc7g3]} 52. Qe1 {[%emt 0:00:57]} (52. Nd4 $11) 52... Qc2 {[%emt 0:00:36]} (52... Qd7 $1 $17 {[%cal Rd7h3]} 53. Nd2 (53. Qxh4 $2 Qd1+ 54. Kg2 Qxb3 $19) 53... Qd3 (53... Qxh3+ $2 54. Kg1 $19)) 53. Nd2 $2 {[%emt 0:00:52]} (53. Nd4 $2 Qd3 54. Qf2 Qxa3 $19 (54... Bxh3 55. e5 $15)) (53. Nc1 $1 $11 {and White has nothing to worry.}) 53... Qd3 {[%emt 0:00:49]} (53... Bxh3 54. Qxh4 Qxd2 55. Qh6+ Kg8 56. Qxh3 $17) 54. Kg2 {[%emt 0:00:21]} (54. a4 $17) 54... Qd7 $2 {[%emt 0:00:17]} ({Better is} 54... Qxa3 $19 55. Qxh4 Qxb4) 55. Kf2 {[%emt 0:00:26]} (55. Qa1+ Kg8 56. Qe1 Qxh3+ 57. Kg1 a5 $17) 55... Qxh3 {[%emt 0:00:04]} 56. Ke3 {[%emt 0:00:04]} (56. Nf1 $11 {remains equal.}) 56... Be6 {[%emt 0:01:39]} (56... Kg8 $142 57. Qc1 Be6) 57. Qf2 {[%emt 0:00:51]} ({White should play} 57. Qg1) 57... Qh1 {[%emt 0:00:14] Black is more active.} 58. f4 {[%emt 0:00:43]} (58. Qf1 $17 {might work better.} Qh2 59. Qf2) 58... Bg4 $19 {[%emt 0:01:13]} 59. f5 {[%emt 0:01:16]} Qh3+ $1 {[%emt 0:01:42]} 60. Kf4 {[%emt 0:00:49]} gxf5 {[%emt 0:00:13]} (60... Bh5 $1 $19 {and Black stays clearly on top.} 61. Qd4+ (61. Qxb6 $2 Qg3#) 61... Kh7) 61. Qd4+ {[%emt 0:00:26]} Kh7 {[%emt 0:00:04][%csl Gh4][%cal Rh3g3] The board is on fire.} (61... Kg8 {with more complications.} 62. Qd8+ Kh7 63. g6+ Kg7) 62. Ke5 $2 {[%emt 0:00:34][%mdl 8192]} (62. g6+ $17 Kxg6 (62... fxg6 63. Kg5 $11) 63. exf5+ Bxf5 64. Qg1+ Kf6 (64... Kh7 65. Nf3 $17) 65. Nf3) 62... f4 {[%emt 0:00:47]} (62... Qxa3 63. Kf6 Bh5 64. exf5 $14) 63. Kf6 {[%emt 0:01:48] Strongly threatening g6+.} Bd7 $2 {[%emt 0:00:50]} (63... Qxa3 64. g6+ fxg6 65. Qe5 $18) (63... Bh5 $1 $19 {[%csl Gf7][%cal Rh3e6]} 64. Qd6 Qg4 (64... Qxa3 $2 65. Ke7 $19)) 64. Qe5 $2 {[%emt 0:00:32]} (64. g6+ $1 $16 Kh6 (64... fxg6 $2 65. Qe5 $16) 65. Qd6 Qc3+ (65... fxg6 66. Qxf4+ Kh7 67. Qe5 $18) 66. e5 (66. Kxf7 $2 Qg7#)) 64... Qe6+ {[%emt 0:01:07]} (64... Qxa3 65. g6+ (65. Qxf4 $2 Qc3+ 66. e5 Qc6+ 67. Ke7 Qe6+ 68. Kd8 Kg7 $19) 65... fxg6 66. Qe7+ (66. Qxf4 $2 Qg3 $19) 66... Kh6 67. Qg7+ Kh5 68. Qxg6#) 65. Qxe6 {[%emt 0:00:10]} Bxe6 $11 {[%emt 0:00:11] KB-KN. Black is a pawn up.} 66. g6+ {[%emt 0:00:25]} Kg8 $1 {[%emt 0:00:01]} (66... fxg6 $2 {is the wrong capture.} 67. Kxe6 h3 68. Nf3 $18) 67. gxf7+ {[%emt 0:00:32]} (67. Nf3 $5 h3 $8 68. b5 axb5 69. g7 $11) 67... Bxf7 {[%emt 0:00:03]} 68. Kg5 {[%emt 0:00:06][%csl LRf4,LRh4] Dodges Bh5} h3 {[%emt 0:00:06]} 69. Nf3 $1 {[%emt 0:00:04]} Kg7 {[%emt 0:00:20]} 70. Kxf4 {[%emt 0:00:50]} Bh5 {[%emt 0:00:20]} 71. Nh2 {[%emt 0:00:54]} Kf6 {[%emt 0:00:14]} 72. Kg3 {[%emt 0:01:29]} Ke5 {[%emt 0:00:16]} 73. Kxh3 {[%emt 0:00:05]} Be2 {[%emt 0:00:23]} 74. Kh4 {[%emt 0:01:05]} Kxe4 {[%emt 0:00:06]} 75. Kg5 $2 {[%emt 0:00:05][%mdl 8192] [#]} (75. Kh3 $11) 75... Ke5 $2 {[%emt 0:00:09]} (75... Ke3 $1 $19 {Strongly threatening ...b5.} 76. Kh4 Kf2) 76. Kh4 $1 $15 {[%emt 0:01:21]} Kf4 {[%emt 0:00:18]} 77. Kh3 {[%emt 0:00:05]} Ke3 {[%emt 0:00:12]} 78. Kg3 {[%emt 0:00:06]} Kd3 {[%emt 0:00:29]} 79. Kf2 {[%emt 0:00:57]} Kd2 {[%emt 0:00:00]} 80. a4 {[%emt 0:00:07]} (80. Kg3 $15) 80... Kd3 $17 {[%emt 0:00:15]} 81. b5 {[%emt 0:00:50] [#]} a5 {[%emt 0:00:04]} (81... axb5 $1 $17 82. axb5 Kd2) 82. Kg3 $2 {[%emt 0:00:07][%mdl 8192]} (82. Nf3 $15) 82... Bd1 {[%emt 0:00:07]} 83. Kf4 {[%emt 0:00:06]} Bxa4 {[%emt 0:00:20]} 84. Ng4 {[%emt 0:00:20]} Bxb5 {[%emt 0:00:08]} 85. Nf2+ {[%emt 0:00:04]} Kc2 {[%emt 0:00:26]} 86. Ne4 {[%emt 0:00:17]} a4 {[%emt 0:00:05]} 87. Nd6 {[%emt 0:00:03]} Bd3 {[%emt 0:00:04]} 88. Ke3 {[%emt 0:00:07]} a3 {[%emt 0:00:02]} 89. Kd4 {[%emt 0:00:11]} a2 {[%emt 0:00:04]} 0-1